fUSD/lending_fUSD_20251129
["ID","MTS","AMOUNT","RATE_DAILY","PERIOD"]
[395105490,1764435040005,292.99772897,0.00014285,2]
[395105492,1764435040803,-398.96999384,0.00014286,2]
[395105493,1764435040814,-1807.49909663,0.00014286,2]
[395105494,1764435040825,-463936.00543909,0.00014286,2]
[395105495,1764435040835,-1852.42,0.00014302,2]
[395105496,1764435040846,-1129.73,0.0001432,2]
[395105497,1764435040855,-600.0,0.00014386,2]
[395105498,1764435040866,-1319.34,0.00014387,2]
[395105499,1764435040879,-366.4916,0.00014387,2]
[395105500,1764435040888,-3044.74,0.00014387,2]
[395105501,1764435040898,-9999.99,0.00014387,2]
[395105502,1764435040907,-1000.0,0.00014402,2]
[395105503,1764435040918,-2751.0,0.00014458,2]
[395105504,1764435040928,-500.0,0.00014486,2]
[395105505,1764435040937,-500.0,0.00014486,2]
[395105506,1764435040947,-500.0,0.00014486,2]
[395105507,1764435040957,-500.0,0.00014486,2]
[395105508,1764435040967,-500.0,0.00014486,2]
[395105509,1764435040976,-500.0,0.00014486,2]
[395105510,1764435040986,-500.0,0.00014486,2]
[395105511,1764435040996,-500.0,0.00014486,2]
[395105512,1764435041006,-500.0,0.00014486,2]
[395105513,1764435041015,-500.0,0.00014486,2]
[395105514,1764435041025,-427.95080921,0.00014486,2]
[395105515,1764435041034,-500.0,0.00014486,2]
[395105516,1764435041043,-500.0,0.00014486,2]
[395105517,1764435041052,-500.0,0.00014486,2]
[395105518,1764435041065,-500.0,0.00014486,2]
[395105519,1764435041075,-500.0,0.00014486,2]
[395105520,1764435041084,-532.59359614,0.00014486,2]
[395105521,1764435041094,-200.0,0.000145,2]
[395105522,1764435041105,-151.0,0.00014521,2]
[395105523,1764435041115,-150.0,0.00014521,7]
[395105524,1764435041125,-2979.08893441,0.00014576,2]
[395105525,1764435041134,-4252.20051789,0.00014576,2]
[395105526,1764435041143,-500.0,0.0001459,2]
[395105527,1764435041152,-500.0,0.0001459,2]
[395105528,1764435041161,-500.0,0.0001459,2]
[395105529,1764435041171,-200.0,0.00014645,2]
[395105530,1764435041180,-200.0,0.00014791,2]
[395105531,1764435041190,-166.66,0.00014808,2]
[395105532,1764435041199,-2979.08893441,0.00014867,2]
[395105533,1764435041208,-4252.20051789,0.00014867,2]
[395105534,1764435041218,-1024.00430531,0.00014867,2]
[395105535,1764435041227,-628.0,0.00014879,2]
[395105536,1764435041238,-760.0,0.0001488,2]
[395105537,1764435041247,-481.0,0.0001488,2]
[395105538,1764435041256,-900.0,0.00014901,2]
[395105539,1764435041268,-511.0,0.00014918,2]
[395105540,1764435041278,-921.0,0.00014932,2]
[395105541,1764435041288,-200.0,0.00014939,2]
[395105542,1764435041298,-348.0,0.00014991,2]
[395105543,1764435041307,-1719.0,0.00015046,2]
[395105544,1764435041317,-220.0,0.0001505,2]
[395105545,1764435041326,-151.0,0.00015069,2]
[395105546,1764435041336,-1214.0,0.00015075,2]
[395105547,1764435041346,-688.0,0.00015076,2]
[395105548,1764435041357,-1600.0,0.00015155,2]
[395105549,1764435041366,-2979.08893441,0.00015157,2]
[395105550,1764435041376,-4252.20051789,0.00015157,2]
[395105551,1764435041386,-150.0,0.00015288,2]
[395105552,1764435041396,-150.0,0.00015288,2]
[395105553,1764435041406,-150.0,0.00015288,2]
[395105554,1764435041415,-150.0,0.00015288,2]
[395105555,1764435041425,-150.0,0.00015288,2]
[395105556,1764435041434,-150.0,0.00015288,2]
[395105557,1764435041443,-150.0,0.00015288,2]
[395105558,1764435041451,-150.0,0.00015288,2]
[395105559,1764435041463,-150.0,0.00015288,2]
[395105560,1764435041473,-260.76603447,0.00015288,2]
[395105561,1764435041484,-150.0,0.00015288,2]
[395105562,1764435041494,-150.0,0.00015288,2]
[395105563,1764435041504,-166.66,0.00015297,2]
[395105564,1764435041513,-2979.08893441,0.00015448,2]
[395105565,1764435041523,-4252.20051789,0.00015448,2]
[395105566,1764435041533,-255.0,0.00015507,2]
[395105567,1764435041543,-273.11,0.00015612,2]
[395105568,1764435041553,-150.0,0.00015627,2]
[395105569,1764435041562,-150.0,0.00015637,2]
[395105570,1764435041571,-420.0,0.00015645,2]
[395105571,1764435041584,-1680.0,0.00015713,2]
[395105572,1764435041601,-250.0,0.00015714,2]
[395105573,1764435041611,-2979.08893441,0.00015738,2]
[395105574,1764435041621,-4252.20051789,0.00015738,2]
[395105575,1764435041630,-222.65612674,0.00015742,2]
[395105576,1764435041641,-166.66,0.00015786,2]
[395105577,1764435041650,-250.0,0.00015821,2]
[395105578,1764435041660,-195.0,0.00015824,2]
[395105579,1764435041670,-150.0,0.00015854,2]
[395105580,1764435041679,-150.0,0.00015967,2]
[395105581,1764435041689,-500.0,0.00015973,2]
[395105582,1764435041699,-502.07472524,0.00015973,2]
[395105583,1764435041710,-500.0,0.00015973,2]
[395105584,1764435041719,-171.28775345,0.00015973,2]
[395105585,1764435041729,-500.0,0.00015973,2]
[395105586,1764435041739,-500.0,0.00015973,2]
[395105587,1764435041748,-500.0,0.00015973,2]
[395105588,1764435041757,-500.0,0.00015973,2]
[395105589,1764435041766,-500.0,0.00015973,2]
[395105590,1764435041775,-366.67180907,0.00015973,2]
[395105591,1764435041784,-500.0,0.00015973,2]
[395105592,1764435041794,-500.0,0.00015973,2]
[395105593,1764435041804,-8648.0,0.00015985,2]
[395105594,1764435041814,-176459.4504607,0.00015985,2]
[395105595,1764435041824,-4830.108971,0.00015985,2]
[395105596,1764435041834,-151.0,0.00015985,2]
[395105597,1764435041850,-151.0,0.00015985,2]
[395105598,1764435041864,-151.0,0.00015985,2]
[395105599,1764435041873,-151.0,0.00015985,2]
[395105600,1764435041883,-173.924566,0.00015985,2]
[395105601,1764435041892,-151.0,0.00015985,2]
[395105602,1764435041902,-151.0,0.00015985,2]
[395105603,1764435041912,-151.0,0.00015985,2]
[395105604,1764435041922,-151.0,0.00015985,2]
[395105605,1764435041932,-151.0,0.00015985,2]
[395105606,1764435041942,-151.0,0.00015985,2]
[395105607,1764435041951,-151.0,0.00015985,2]
[395105608,1764435041961,-151.0,0.00015985,2]
[395105609,1764435041970,-151.0,0.00015985,2]
[395105610,1764435041980,-151.0,0.00015985,2]
[395105611,1764435041989,-151.0,0.00015985,2]
[395105612,1764435041999,-151.0,0.00015985,2]
[395105613,1764435042009,-151.0,0.00015985,2]
[395105614,1764435042018,-151.0,0.00015985,2]
[395105615,1764435042028,-416.484381,0.00015985,2]
[395105616,1764435042038,-416.484381,0.00015985,2]
[395105617,1764435042047,-416.484381,0.00015985,2]
[395105618,1764435042057,-416.484381,0.00015985,2]
[395105619,1764435042067,-221.449532,0.00015985,2]
[395105620,1764435042077,-221.449532,0.00015985,2]
[395105621,1764435042088,-151.0,0.00015985,2]
[395105622,1764435042098,-221.449532,0.00015985,2]
[395105623,1764435042108,-151.0,0.00015985,2]
[395105624,1764435042119,-221.449532,0.00015985,2]
[395105625,1764435042128,-151.0,0.00015985,2]
[395105626,1764435042138,-151.0,0.00015985,2]
[395105627,1764435042147,-151.0,0.00015985,2]
[395105628,1764435042157,-151.0,0.00015985,2]
[395105629,1764435042168,-151.0,0.00015985,2]
[395105630,1764435042178,-151.0,0.00015985,2]
[395105631,1764435042189,-151.0,0.00015985,2]
[395105632,1764435042200,-151.0,0.00015985,2]
[395105633,1764435042215,-151.0,0.00015985,2]
[395105634,1764435042224,-151.0,0.00015985,2]
[395105635,1764435042235,-203.892556,0.00015985,2]
[395105636,1764435042245,-151.0,0.00015985,2]
[395105637,1764435042255,-151.0,0.00015985,2]
[395105638,1764435042266,-151.0,0.00015985,2]
[395105639,1764435042276,-151.0,0.00015985,2]
[395105640,1764435042288,-151.0,0.00015985,2]
[395105641,1764435042300,-151.0,0.00015985,2]
[395105642,1764435042311,-151.0,0.00015985,2]
[395105643,1764435042321,-151.0,0.00015985,2]
[395105644,1764435042332,-1008.02,0.00015985,2]
[395105645,1764435042343,-481.72322933,0.00016,12]
[395105646,1764435042354,-2979.08893441,0.00016029,2]
[395105647,1764435042364,-4252.20051789,0.00016029,2]
[395105648,1764435042375,-984.4121911,0.00016097,2]
[395105649,1764435042386,-151.0,0.00016097,2]
[395105650,1764435042397,-200.0,0.00016097,2]
[395105651,1764435042407,-200.0,0.00016097,2]
[395105652,1764435042418,-200.0,0.00016097,2]
[395105653,1764435042428,-810.0,0.00016097,2]
[395105654,1764435042439,-150.0,0.00016097,2]
[395105655,1764435042449,-150.0,0.00016097,2]
[395105656,1764435042459,-500.0,0.00016097,2]
[395105657,1764435042469,-150.0,0.00016097,2]
[395105658,1764435042479,-150.0,0.00016097,2]
[395105659,1764435042489,-190.07902691,0.00016097,2]
[395105660,1764435042499,-150.0,0.00016097,2]
[395105661,1764435042510,-150.0,0.00016097,2]
[395105662,1764435042519,-150.0,0.00016097,2]
[395105663,1764435042530,-150.0,0.00016097,2]
[395105664,1764435042540,-150.0,0.00016097,2]
[395105665,1764435042551,-500.0,0.00016097,2]
[395105666,1764435042565,-500.0,0.00016097,2]
[395105667,1764435042576,-150.0,0.00016097,2]
[395105668,1764435042587,-150.0,0.00016097,2]
[395105669,1764435042597,-150.0,0.00016097,2]
[395105670,1764435042607,-500.0,0.00016097,2]
[395105671,1764435042618,-165.01599511,0.00016097,2]
[395105672,1764435042628,-150.0,0.00016097,2]
[395105673,1764435042638,-169.68413,0.00016097,2]
[395105674,1764435042648,-150.0,0.00016137,2]
[395105675,1764435042658,-150.0,0.00016137,2]
[395105676,1764435042669,-150.0,0.00016137,2]
[395105677,1764435042679,-150.0,0.00016137,2]
[395105678,1764435042689,-150.0,0.00016137,2]
[395105679,1764435042699,-812.84725818,0.00016153,2]
[395105680,1764435042709,-5000.00396391,0.000162,5]
[395105681,1764435042720,-1000.0,0.00016202,2]
[395105682,1764435042731,-810.0,0.00016234,2]
[395105683,1764435042740,-150.0,0.00016234,2]
[395105684,1764435042751,-150.0,0.00016234,2]
[395105685,1764435042768,-500.0,0.00016234,2]
[395105686,1764435042779,-150.0,0.00016234,2]
[395105687,1764435042789,-150.0,0.00016234,2]
[395105688,1764435042799,-150.0,0.00016234,2]
[395105689,1764435042810,-500.0,0.00016234,2]
[395105690,1764435042820,-500.0,0.00016234,2]
[395105691,1764435042831,-150.0,0.00016234,2]
[395105692,1764435042841,-500.0,0.00016234,2]
[395105693,1764435042853,-150.0,0.00016234,2]
[395105694,1764435042863,-151.0,0.00016253,2]
[395105695,1764435042874,-151.0,0.00016253,2]
[395105696,1764435042884,-151.0,0.00016253,2]
[395105697,1764435042894,-151.0,0.00016253,2]
[395105698,1764435042905,-151.0,0.00016253,2]
[395105699,1764435042915,-151.0,0.00016253,2]
[395105700,1764435042925,-274.748819,0.00016253,2]
[395105701,1764435042935,-151.0,0.00016253,2]
[395105702,1764435042945,-151.0,0.00016253,2]
[395105703,1764435042957,-151.0,0.00016253,2]
[395105704,1764435042968,-151.0,0.00016253,2]
[395105705,1764435042978,-151.0,0.00016253,2]
[395105706,1764435042988,-151.0,0.00016253,2]
[395105707,1764435042998,-416.484381,0.00016253,2]
[395105708,1764435043008,-416.484381,0.00016253,2]
[395105709,1764435043018,-416.484381,0.00016253,2]
[395105710,1764435043028,-416.484381,0.00016253,2]
[395105711,1764435043038,-221.449532,0.00016253,2]
[395105712,1764435043048,-221.449532,0.00016253,2]
[395105713,1764435043059,-151.0,0.00016253,2]
[395105714,1764435043069,-221.449532,0.00016253,2]
[395105715,1764435043079,-151.0,0.00016253,2]
[395105716,1764435043089,-221.449532,0.00016253,2]
[395105717,1764435043100,-151.0,0.00016253,2]
[395105718,1764435043110,-151.0,0.00016253,2]
[395105719,1764435043119,-151.0,0.00016253,2]
[395105720,1764435043129,-151.0,0.00016253,2]
[395105721,1764435043139,-151.0,0.00016253,2]
[395105722,1764435043154,-151.0,0.00016253,2]
[395105723,1764435043164,-151.0,0.00016253,2]
[395105724,1764435043174,-151.0,0.00016253,2]
[395105725,1764435043184,-151.0,0.00016253,2]
[395105726,1764435043194,-151.0,0.00016253,2]
[395105727,1764435043204,-151.0,0.00016253,2]
[395105728,1764435043214,-151.0,0.00016253,2]
[395105729,1764435043224,-151.0,0.00016253,2]
[395105730,1764435043235,-151.0,0.00016253,2]
[395105731,1764435043244,-151.0,0.00016253,2]
[395105732,1764435043254,-151.0,0.00016253,2]
[395105733,1764435043264,-151.0,0.00016253,2]
[395105734,1764435043274,-151.0,0.00016253,2]
[395105735,1764435043284,-151.0,0.00016253,2]
[395105736,1764435043294,-244.04966817,0.00016253,2]
[395105737,1764435043304,-151.0,0.00016253,2]
[395105738,1764435043314,-151.0,0.00016253,2]
[395105739,1764435043325,-193.696077,0.00016253,2]
[395105740,1764435043335,-151.0,0.00016253,2]
[395105741,1764435043345,-151.0,0.00016253,2]
[395105742,1764435043355,-151.0,0.00016253,2]
[395105743,1764435043365,-151.0,0.00016253,2]
[395105744,1764435043374,-193.696077,0.00016253,2]
[395105745,1764435043385,-193.696077,0.00016253,2]
[395105746,1764435043395,-151.0,0.00016253,2]
[395105747,1764435043405,-151.0,0.00016253,2]
[395105748,1764435043414,-151.0,0.00016253,2]
[395105749,1764435043424,-151.0,0.00016253,2]
[395105750,1764435043434,-151.0,0.00016253,2]
[395105751,1764435043444,-151.0,0.00016253,2]
[395105752,1764435043454,-156.596061,0.00016253,2]
[395105753,1764435043464,-151.0,0.00016253,2]
[395105754,1764435043474,-151.0,0.00016253,2]
[395105755,1764435043485,-151.0,0.00016253,2]
[395105756,1764435043495,-238.38779,0.00016253,2]
[395105757,1764435043505,-238.38779,0.00016253,2]
[395105758,1764435043514,-238.38779,0.00016253,2]
[395105759,1764435043524,-151.0,0.00016253,2]
[395105760,1764435043535,-151.0,0.00016253,2]
[395105761,1764435043544,-238.38779,0.00016253,2]
[395105762,1764435043554,-151.0,0.00016253,2]
[395105763,1764435043564,-151.0,0.00016253,2]
[395105764,1764435043575,-151.0,0.00016253,2]
[395105765,1764435043585,-151.0,0.00016253,2]
[395105766,1764435043595,-151.0,0.00016253,2]
[395105767,1764435043604,-151.0,0.00016253,2]
[395105768,1764435043614,-151.0,0.00016253,2]
[395105769,1764435043624,-151.0,0.00016253,2]
[395105770,1764435043635,-151.0,0.00016253,2]
[395105772,1764435043644,-151.0,0.00016253,2]
[395105774,1764435043654,-151.0,0.00016253,2]
[395105775,1764435043664,-151.0,0.00016253,2]
[395105776,1764435043675,-151.0,0.00016253,2]
[395105777,1764435043685,-151.0,0.00016253,2]
[395105778,1764435043695,-151.0,0.00016253,2]
[395105779,1764435043706,-151.0,0.00016253,2]
[395105780,1764435043717,-151.0,0.00016253,2]
[395105781,1764435043727,-151.0,0.00016253,2]
[395105782,1764435043737,-151.0,0.00016253,2]
[395105783,1764435043748,-151.0,0.00016253,2]
[395105784,1764435043758,-151.0,0.00016253,2]
[395105785,1764435043769,-151.0,0.00016253,2]
[395105786,1764435043779,-191.180654,0.00016253,2]
[395105787,1764435043789,-151.0,0.00016253,2]
[395105788,1764435043800,-151.0,0.00016253,2]
[395105789,1764435043810,-151.0,0.00016253,2]
[395105790,1764435043822,-151.0,0.00016253,2]
[395105791,1764435043832,-151.0,0.00016253,2]
[395105792,1764435043843,-151.0,0.00016253,2]
[395105793,1764435043855,-151.0,0.00016253,2]
[395105794,1764435043865,-151.0,0.00016253,2]
[395105795,1764435043875,-163.462375,0.00016253,2]
[395105796,1764435043886,-151.0,0.00016253,2]
[395105797,1764435043898,-151.0,0.00016253,2]
[395105798,1764435043909,-151.0,0.00016253,2]
[395105799,1764435043920,-151.0,0.00016253,2]
[395105800,1764435043931,-151.0,0.00016253,2]
[395105801,1764435043942,-151.0,0.00016253,2]
[395105802,1764435043953,-151.0,0.00016253,2]
[395105803,1764435043963,-151.0,0.00016253,2]
[395105804,1764435043977,-151.0,0.00016253,2]
[395105805,1764435043987,-151.0,0.00016253,2]
[395105806,1764435043998,-5702.71425951,0.00016253,2]
[395105807,1764435044008,-151.0,0.00016253,2]
[395105808,1764435044018,-1000.0,0.00016253,2]
[395105809,1764435044028,-1000.0,0.00016253,2]
[395105810,1764435044038,-1000.0,0.00016253,2]
[395105811,1764435044049,-620.0,0.00016253,2]
[395105812,1764435044059,-1000.0,0.00016253,2]
[395105813,1764435044068,-574.12855637,0.00016253,2]
[395105814,1764435044078,-1000.0,0.00016253,2]
[395105815,1764435044088,-1000.0,0.00016253,2]
[395105816,1764435044097,-151.0,0.00016253,2]
[395105817,1764435044108,-1000.0,0.00016253,2]
[395105818,1764435044118,-1000.0,0.00016253,2]
[395105819,1764435044128,-500.0,0.00016253,2]
[395105820,1764435044137,-1000.0,0.00016253,2]
[395105821,1764435044147,-500.0,0.00016253,2]
[395105822,1764435044157,-1000.0,0.00016253,2]
[395105823,1764435044167,-500.0,0.00016253,2]
[395105824,1764435044176,-578.20924308,0.00016253,2]
[395105825,1764435044186,-1000.0,0.00016253,2]
[395105826,1764435044196,-500.0,0.00016253,2]
[395105827,1764435044206,-1000.0,0.00016253,2]
[395105828,1764435044216,-500.0,0.00016253,2]
[395105829,1764435044226,-8000.0,0.00016253,2]
[395105830,1764435044236,-500.0,0.00016253,2]
[395105831,1764435044246,-8000.0,0.00016253,2]
[395105832,1764435044255,-500.0,0.00016253,2]
[395105833,1764435044265,-8000.0,0.00016253,2]
[395105834,1764435044275,-500.0,0.00016253,2]
[395105835,1764435044284,-8000.0,0.00016253,2]
[395105836,1764435044294,-500.0,0.00016253,2]
[395105837,1764435044304,-8000.0,0.00016253,2]
[395105838,1764435044314,-475.70981304,0.00016253,2]
[395105839,1764435044324,-300.0,0.00016253,2]
[395105840,1764435044334,-8000.0,0.00016253,2]
[395105841,1764435044344,-8000.0,0.00016253,2]
[395105842,1764435044354,-250.0,0.00016253,2]
[395105843,1764435044363,-8000.0,0.00016253,2]
[395105844,1764435044373,-250.0,0.00016253,2]
[395105845,1764435044383,-8000.0,0.00016253,2]
[395105846,1764435044393,-250.0,0.00016253,2]
[395105847,1764435044403,-250.0,0.00016253,2]
[395105848,1764435044413,-8000.0,0.00016253,2]
[395105849,1764435044423,-250.0,0.00016253,2]
[395105850,1764435044433,-8000.0,0.00016253,2]
[395105851,1764435044442,-250.0,0.00016253,2]
[395105852,1764435044452,-500.0,0.00016253,2]
[395105853,1764435044462,-250.0,0.00016253,2]
[395105854,1764435044472,-8000.0,0.00016253,2]
[395105855,1764435044482,-250.0,0.00016253,2]
[395105856,1764435044492,-500.0,0.00016253,2]
[395105857,1764435044502,-250.0,0.00016253,2]
[395105858,1764435044513,-1000.0,0.00016253,2]
[395105859,1764435044523,-250.0,0.00016253,2]
[395105860,1764435044532,-500.0,0.00016253,2]
[395105861,1764435044542,-250.0,0.00016253,2]
[395105862,1764435044552,-250.0,0.00016253,2]
[395105863,1764435044562,-500.0,0.00016253,2]
[395105864,1764435044572,-250.0,0.00016253,2]
[395105865,1764435044581,-250.0,0.00016253,2]
[395105866,1764435044591,-500.0,0.00016253,2]
[395105867,1764435044602,-250.0,0.00016253,2]
[395105868,1764435044612,-250.0,0.00016253,2]
[395105869,1764435044622,-500.0,0.00016253,2]
[395105870,1764435044631,-250.0,0.00016253,2]
[395105871,1764435044640,-250.0,0.00016253,2]
[395105872,1764435044650,-500.0,0.00016253,2]
[395105873,1764435044660,-250.0,0.00016253,2]
[395105874,1764435044670,-250.0,0.00016253,2]
[395105875,1764435044680,-500.0,0.00016253,2]
[395105876,1764435044690,-250.0,0.00016253,2]
[395105877,1764435044700,-500.0,0.00016253,2]
[395105878,1764435044709,-250.0,0.00016253,2]
[395105879,1764435044720,-500.0,0.00016253,2]
[395105880,1764435044730,-250.0,0.00016253,2]
[395105881,1764435044740,-500.0,0.00016253,2]
[395105882,1764435044750,-250.0,0.00016253,2]
[395105883,1764435044760,-250.0,0.00016253,2]
[395105884,1764435044774,-500.0,0.00016253,2]
[395105885,1764435044783,-264.94161149,0.00016253,2]
[395105886,1764435044793,-267.46074303,0.00016253,2]
[395105887,1764435044804,-151.0,0.00016253,2]
[395105888,1764435044816,-151.0,0.00016253,2]
[395105889,1764435044826,-151.0,0.00016253,2]
[395105890,1764435044835,-151.0,0.00016253,2]
[395105891,1764435044847,-151.0,0.00016253,2]
[395105892,1764435044856,-1000.0,0.00016253,2]
[395105893,1764435044866,-277.50242414,0.00016253,2]
[395105894,1764435044875,-1000.0,0.00016253,2]
[395105895,1764435044886,-1000.0,0.00016253,2]
[395105896,1764435044895,-151.0,0.00016253,2]
[395105897,1764435044905,-1000.0,0.00016253,2]
[395105898,1764435044916,-1000.0,0.00016253,2]
[395105899,1764435044927,-1000.0,0.00016253,2]
[395105900,1764435044940,-1000.0,0.00016253,2]
[395105901,1764435044958,-1000.0,0.00016253,2]
[395105902,1764435044973,-1000.0,0.00016253,2]
[395105903,1764435044982,-1000.0,0.00016253,2]
[395105904,1764435044991,-669.64325399,0.00016253,2]
[395105905,1764435045000,-500.0,0.00016253,2]
[395105906,1764435045009,-334.5472959,0.00016253,2]
[395105907,1764435045019,-500.0,0.00016253,2]
[395105908,1764435045029,-500.0,0.00016253,2]
[395105909,1764435045038,-500.0,0.00016253,2]
[395105910,1764435045047,-500.0,0.00016253,2]
[395105911,1764435045056,-500.0,0.00016253,2]
[395105912,1764435045065,-500.0,0.00016253,2]
[395105913,1764435045075,-500.0,0.00016253,2]
[395105914,1764435045530,-200.0,0.00016258,2]
[395105915,1764435045541,-1008.02,0.00016259,2]
[395105916,1764435045551,-166.66,0.00016275,2]
[395105917,1764435045562,-150.0,0.00016307,2]
[395105918,1764435045573,-175.73,0.00016312,2]
[395105919,1764435045582,-2979.08893441,0.00016319,2]
[395105920,1764435045592,-4252.20051789,0.00016319,2]
[395105921,1764435045603,-200.0,0.0001634,2]
[395105922,1764435045614,-810.0,0.00016371,2]
[395105923,1764435045624,-200.0,0.00016371,2]
[395105924,1764435045635,-200.0,0.00016371,2]
[395105925,1764435045644,-500.0,0.00016371,2]
[395105926,1764435045653,-200.0,0.00016371,2]
[395105927,1764435045662,-200.0,0.00016371,2]
[395105928,1764435045674,-200.0,0.00016371,2]
[395105929,1764435045684,-500.0,0.00016371,2]
[395105930,1764435045694,-500.0,0.00016371,2]
[395105931,1764435045703,-200.0,0.00016371,2]
[395105932,1764435045714,-500.0,0.00016371,2]
[395105933,1764435045725,-150.0,0.00016371,2]
[395105934,1764435045735,-150.0,0.0001642,2]
[395105935,1764435045746,-475.4,0.00016438,2]
[395105936,1764435045756,-301.63725444,0.00016438,2]
[395105937,1764435045766,-500.0,0.00016438,2]
[395105938,1764435045776,-500.0,0.00016438,2]
[395105939,1764435045786,-500.0,0.00016438,2]
[395105940,1764435045795,-500.0,0.00016438,2]
[395105941,1764435045805,-500.0,0.00016438,2]
[395105942,1764435045815,-500.0,0.00016438,2]
[395105943,1764435045825,-608.29477948,0.00016438,2]
[395105944,1764435045835,-500.0,0.00016438,2]
[395105945,1764435045844,-500.0,0.00016438,2]
[395105946,1764435045853,-500.0,0.00016438,2]
[395105947,1764435045863,-9239.23,0.00016438,2]
[395105948,1764435045872,-300.0,0.00016438,2]
[395105949,1764435045882,-151.0,0.00016438,2]
[395105950,1764435045892,-800.0,0.00016438,2]
[395105951,1764435045902,-151.0,0.00016438,2]
[395105952,1764435045911,-810.0,0.00016508,2]
[395105953,1764435045921,-500.0,0.00016508,2]
[395105954,1764435045931,-621.89568788,0.00016508,2]
[395105955,1764435045940,-500.0,0.00016508,2]
[395105956,1764435045950,-500.0,0.00016508,2]
[395105957,1764435045959,-200.0,0.00016508,2]
[395105958,1764435045971,-1000.0,0.00016521,2]
[395105959,1764435045980,-684.79730938,0.00016521,2]
[395105960,1764435045991,-1000.0,0.00016521,2]
[395105961,1764435046005,-500.0,0.00016521,2]
[395105962,1764435046016,-1000.0,0.00016521,2]
[395105964,1764435046027,-1000.0,0.00016521,2]
[395105967,1764435046038,-1000.0,0.00016521,2]
[395105968,1764435046049,-1000.0,0.00016521,2]
[395105969,1764435046059,-1000.0,0.00016521,2]
[395105970,1764435046069,-151.0,0.00016521,2]
[395105971,1764435046079,-151.0,0.00016521,2]
[395105972,1764435046090,-151.0,0.00016521,2]
[395105973,1764435046100,-151.0,0.00016521,2]
[395105975,1764435046110,-151.0,0.00016521,2]
[395105976,1764435046120,-1008.02,0.00016533,2]
[395105977,1764435046130,-427.45964135,0.0001658,2]
[395105978,1764435046140,-2979.08893441,0.0001661,2]
[395105979,1764435046150,-4252.20051789,0.0001661,2]
[395105980,1764435046160,-810.0,0.00016645,2]
[395105981,1764435046170,-500.0,0.00016645,2]
[395105982,1764435046181,-500.0,0.00016645,2]
[395105983,1764435046191,-514.0,0.00016645,2]
[395105984,1764435046201,-151.0,0.00016645,2]
[395105985,1764435046212,-156.0766,0.00016645,2]
[395105986,1764435046223,-151.0,0.00016645,2]
[395105987,1764435046233,-151.0,0.00016645,2]
[395105988,1764435046244,-151.0,0.00016645,2]
[395105989,1764435046254,-151.0,0.00016645,2]
[395105990,1764435046266,-151.0,0.00016645,2]
[395105991,1764435046276,-151.0,0.00016645,2]
[395105992,1764435046286,-151.0,0.00016645,2]
[395105993,1764435046296,-150.0,0.00016647,2]
[395105994,1764435046307,-1386.0,0.00016673,2]
[395105995,1764435046317,-165.39,0.00016713,2]
[395105996,1764435046328,-433.0,0.00016715,2]